{"text_format":"3","workbook":"xlsx","n_sheets":3,"sheets":["FORMAT","SCORING TABLES","SCORE SHEETS"],"read":"whole","date_system":"1900"}

{"sheet":"FORMAT","index":0,"n_rows":97,"n_cols":20,"rows_kept":97,"merged":[[55,1,56,6],[58,1,58,2],[58,3,58,4],[58,5,58,6],[59,1,59,2],[59,3,59,4],[59,5,59,6],[62,1,62,2],[62,4,62,5],[63,3,63,4],[64,1,64,2],[66,5,66,6],[68,1,68,2],[69,3,69,4],[70,1,70,2],[71,7,71,8],[72,7,72,8],[74,1,74,2],[75,3,75,4],[76,1,76,2],[78,5,78,6],[80,1,80,2],[81,3,81,4],[82,1,82,2],[84,5,84,6],[85,5,85,6],[86,7,86,8],[87,7,87,8],[88,5,88,6],[89,5,89,6],[91,1,91,2],[91,3,91,4],[91,5,91,6],[93,1,93,2],[93,3,93,4],[93,5,93,6],[96,1,96,2],[96,3,96,4],[96,5,96,6]]}
["APC SINGLES CHAMPIONSHIP 2018 - MANILA - PLAYING SCHEDULE - 23RD. AUGUST 2018 - STARTS AT 11AM"]
[]
[null,"HCMC","SHANGHAI","BANGKOK","SINGAPORE","MANILA","PHNOM PENH","JAKARTA","SEOUL"]
[]
["Conference 1","Ho Chi Minh 1","Shanghai 2","Bangkok 1","Singapore 2","Manila 1","Phnom Penh 2","Jakarta 1","Seoul 2"]
[null,"Jamie Gregory","Alan Wong","Alex Quek","Ferdinand Sy","Esteban Robles","Visal Peou","Lee Oakes","Matt West"]
[]
[]
["Conference 2","Ho Chi Minh 2","Shanghai 1","Bangkok 2","Singapore 1","Manila 2","Phnom Penh 1","Jakarta 2","Seoul 1"]
[null,"Martyn Drew","Freddie Soh","Ruari McCarroll","John Dangerfield","David Belcher","Guillaume Zackerie","Kenneth Aprillida","Paul Riddle"]
[]
[]
[]
[]
[]
["   QUALIFYING ROUNDS - BEST OF 3 FRAMES - TOP FOUR PLAYERS FROM EACH GROUP GO TO FINALS"]
[null,null," "]
[null,"TABLE 1","TABLE 2","TABLE 3","TABLE 4","TABLE 5","TABLE 6","TABLE 7","TABLE 8",null,null,"TABLE 1","TABLE 2","TABLE 3","TABLE 4","TABLE 5","TABLE 6","TABLE 7","TABLE 8"]
[null," "," "]
[null,"Martyn Drew","Freddie Soh","David Belcher","Guillaume Zackerie","Alex Quek","Alan Wong","Jamie Gregory","Ferdinand Sy",null,"Ho Chi Minh 1",1,null,2,1,null,null,2,1,{"$f":"SUM(L20:S20)","v":7}]
["11.00 - 11.30 PM","vs","vs","vs","vs","vs","vs","vs","vs",null,"Shanghai 2",1,1,null,1,2,1,1,null,{"$f":"SUM(L21:S21)","v":7}]
[null,"Ruari McCarroll","John Dangerfield","Paul Riddle","Kenneth Aprillida","Visal Peou","Lee Oakes","Matt West","Esteban Robles",null,"Bangkok 1",1,1,1,null,1,null,1,2,7]
[{"$nulls":10},"Singapore 2",null,null,1,2,null,1,1,2,7]
[null,"Esteban Robles","Visal Peou","Jamie Gregory","Alan Wong","David Belcher","Martyn Drew","Freddie Soh","John Dangerfield",null,"Manila 1",1,null,1,1,2," ",null,2,7]
["11.30 - 12.00 PM","vs","vs","vs","vs","vs","vs","vs","vs",null,"Phnom Penh 2",null,1,1,2,2," ",null,1,7]
[null,"Matt West","Lee Oakes","Alex Quek","Ferdinand Sy","Kenneth Aprillida","Guillaume Zackerie","Ruari McCarroll","Paul Riddle",null,"Jakarta 1",1,1,1,1,1,2," ",null,7]
[{"$nulls":10},"Seoul 2",1,2,1,null,null,2,1,null,7]
[null,"Jamie Gregory","Alex Quek","Ferdinand Sy","Esteban Robles","John Dangerfield","Freddie Soh","Martyn Drew","Ruari McCarrol,"]
["12.00 - 12.30 PM","vs","vs","vs","vs","vs",null,"vs"]
[null,"Alan Wong","Matt West","Lee Oakes","Visal Peou","David Belcher","Kenneth Aprillida","Paul Riddle","Guillaume Zackerie",null,"Ho Chi Minh 2",1," ",2," ",1,1,2," ",{"$f":"SUM(L30:S30)","v":7}]
[{"$nulls":10},"Shanghai 1",1,2," "," ",1,2,1,null,7]
[null,"John Dangerfield","Ruari McCarroll","Visal Peou","Jamie Gregory","Alan Wong","Freddie Soh","Martyn Drew","Alex Quek",null,"Bangkok 2",1,1,null,2,null,1,1,1,7]
["12.30 - 1.00 PM","vs","vs","vs","vs","vs","vs","vs","vs",null,"Singapore 1",1,1,1,1,1," ",1,1,7]
[null,"Guillaume Zackerie","Kenneth Aprillida","Matt West","Lee Oakes","Esteban Robles","Paul Riddle","David Belcher","Ferdinand Sy",null,"Manila 2",1," ",1,1,2,null,1,1,{"$f":"SUM(L34:S34)","v":7}]
[{"$nulls":10},"Phnom Penh 1",1,2,null,1,null,1,null,2,{"$f":"SUM(L35:S35)","v":7}]
[null,"Kenneth Aprillida","Freddie Soh","Martyn Drew","Ruari McCarroll","Esteban Robles","Ferdinand Sy","Alex Quek","Jamie Gregory",null,"Jakarta 2",1,1,1,1,1,1,1,null,{"$f":"SUM(L36:S36)","v":7}]
["1.00 - 1.30 PM","vs","vs","vs","vs","vs","vs",null,"vs",null,"Seoul 1",1,1,1," ",null,2,1,1,7]
[null,"Paul Riddle","Guillaume Zackerie","John Dangerfield","David Belcher","Lee Oakes","Matt West","Alan Wong","Visal Peou"]
[{"$nulls":11},{"$f":"SUM(L20:L37)","v":14},{"$f":"SUM(M20:M37)","v":14},14,14,14,14,14,14]
[null,"Alex Quek","Alan Wong","Jamie Gregory","Ferdinand Sy","Martyn Drew","Ruari McCarroll","John Dangerfield","David Belcher"]
["1.30 - 2.00 PM","vs","vs","vs","vs",null,"vs","vs","vs"]
[null,"Lee Oakes","Matt West","Esteban Robles","Visal Peou","Freddie Soh","Paul Riddle","Kenneth Aprillida","Guillaume Zackerie"]
[]
[null,"Freddie Soh","Guillaume Zackerie","Martyn Drew","Ruari McCarroll","Alan Wong","Lee Oakes","Jamie Gregory","Alex Quek"]
["2.00 - 2.30 PM","vs","vs","vs","vs","vs","vs","vs","vs"]
[null,"David Belcher","Paul Riddle","Kenneth Aprillida","John Dangerfield","Visal Peou","Matt West","Ferdinand Sy","Esteban Robles"]
[{"$nulls":11},{"$f":"SUM(L20:L46)","v":28},{"$f":"SUM(M20:M46)","v":28},28,28,28,28,28,28]
{"$rows_empty":8}
[null,"KNOCKOUT STAGE"]
[]
[]
[null,"QUARTER FINALS",null,"SEMI FINALS",null,"FINALS"]
[null,"BEST OF 5 FRAMES",null,"BEST OF 7 FRAMES",null,"BEST OF 9 FRAMES"]
[]
[]
[null,"CONFERENCE 1  WINNER 1",null," "," "]
[]
[null,"CONFERENCE 2   WINNER 4"]
[]
[]
[]
[null,"CONFERENCE 1  WINNER 3"]
[]
[null,"CONFERENCE 2  WINNER 2"]
[{"$nulls":7},"CHAMPION"]
[{"$nulls":7},"BEST OF 9 FRAMES"]
[]
[null,"CONFERENCE 1  WINNER 2"]
[]
[null,"CONFERENCE 2  WINNER 3"]
[]
[]
[]
[null,"CONFERENCE 1  WINNER 4"]
[]
[null,"CONFERENCE 2  WINNER 1"]
[]
[{"$nulls":5},"LOSER SEMI FINALS"]
[]
[{"$nulls":7},"3RD. PLACING"]
[{"$nulls":7},"BEST OF 7 FRAMES"]
[{"$nulls":5},"LOSER SEMI FINALS"]
[]
[]
[null,"Time allocation",null,"Time allocation",null,"Time allocation"]
[]
[null,"ABOUT 50 MINUTES",null,"ABOUT 70 MINUTES",null,"ABOUT 90 MINUTES"]
[]
[]
[null,"3.10 - 4.00 PM",null,"4.10 - 5.30 PM",null,"6.00 - 7.30 PM"]

{"sheet":"SCORING TABLES","index":1,"n_rows":29,"n_cols":12,"rows_kept":29,"merged":[[26,1,26,9],[28,1,28,7]]}
["APC SINGLES CHAMPIONSHIP 2018 -MANILA - SCORING TABLE"]
[]
["CONFERENCE 1"]
[]
[null,"Ho Chi Minh 1   JAMIE GREGORY","Manila 1              ESTAFAN ROBES","Shanghai 2             ALAN WONG","Jakarta 1                      LEE OAKES","Singapore 2         FERDINAND SY","Bangkok 1                ALEX QUEK","Phnom Penh 2         VISAL PEOU","Seoul 2                       MATT WEST","POINTS","RACKS       WON","RACKS       LOST"]
["Ho Chi Minh 1          JAMIE GREGORY",{"$nulls":8},0,{"$f":"SUM(C6:I6)","v":0},0]
["Manila 1              ESTAFAN ROBES",{"$nulls":8},0,{"$f":"SUM(C7:I7)","v":0},0]
["Shanghai 2                   ALAN WONG",{"$nulls":8},0,0,0]
["Jakarta 1                            LEE OAKES",{"$nulls":8},0,0,0]
["Singapore 2         FERDINAND SY",{"$nulls":8},0,0,0]
["Bangkok 1                    ALEX QUEK",{"$nulls":8},0,0,0]
["Phnom Penh 2           VISAL PEOU",{"$nulls":8},0,0,0]
["Seoul 2                        MATT WEST ",{"$nulls":8},0,0,0]
[]
["CONFERENCE 2"]
[]
[null,"Ho Chi Minh 2    MARTYN DREW","Manila 2                    DAVID BELCHER","Shanghai 1             FREDDIE SOH","Jakarta 2                KENNETH APRILLIDA","Singapore 1                JOHN DANGERFIELD","Bangkok 2                  RAURI McCARROLL","Phnom Penh 1     GUILLAUME ZACKERIE","Seoul 1                  PAUL RIDDLE","POINTS","RACKS       WON","RACKS       LOST"]
["Ho Chi Minh 2     MARTYN DREW",{"$nulls":8},0,{"$f":"SUM(C18:I18)","v":0},0]
["Manila 2                    DAVID BELCHER",{"$nulls":8},0,0,0]
["Shanghai 1             FREDDIE SOH",{"$nulls":8},0,0,0]
["Jakarta 2                KENNETH APRILLIDA",{"$nulls":8},0,0,0]
["Singapore 1                JOHN DANGERFIELD",{"$nulls":8},0,0,0]
["Bangkok 2                  RAURI McCARROLL",{"$nulls":8},0,0,0]
["Phnom Penh 1     GUILLAUME ZACKERIE",{"$nulls":8},0,0,0]
["Seoul 1                           PAUL RIDDLE ",{"$nulls":8},0,0,0]
[]
["Scenario 1","In the event of a tie on points after the preliminary rounds, the winner will be the player who won when these two players met during the premilinary rounds."]
[]
["Scenario 2","In the event that more than 2 players fulfilled the criteria in Scenario 1 above, then Racks difference (Won and Lost) will be taken into account."]

{"sheet":"SCORE SHEETS","index":2,"n_rows":198,"n_cols":13,"rows_kept":198,"merged":[[0,1,0,11],[2,1,2,11],[3,1,3,11],[5,1,5,2],[8,1,9,5],[8,6,9,6],[8,7,9,11],[11,3,13,3],[11,9,13,9],[21,1,21,11],[23,1,23,11],[24,1,24,11],[26,1,26,2],[29,1,30,5],[29,6,30,6],[29,7,30,11],[32,3,34,3],[32,9,34,9],[42,1,42,11],[44,1,44,11],[45,1,45,11],[47,1,47,2],[50,1,51,5],[50,6,51,6],[50,7,51,11],[53,3,55,3],[53,9,55,9],[63,1,63,11],[65,1,65,11],[66,1,66,11],[68,1,68,2],[71,1,72,5],[71,6,72,6],[71,7,72,11],[74,3,76,3],[74,9,76,9],[84,1,84,11],[86,1,86,11],[87,1,87,11],[89,1,89,2],[92,1,93,5],[92,6,93,6],[92,7,93,11],[95,3,97,3],[95,9,97,9],[105,1,105,11],[107,1,107,11],[108,1,108,11],[110,1,110,2],[113,1,114,5],[113,6,114,6],[113,7,114,11],[116,3,118,3],[116,9,118,9],[126,1,126,11],[128,1,128,11],[129,1,129,11],[131,1,131,2],[134,1,135,5],[134,6,135,6],[134,7,135,11],[137,3,139,3],[137,9,139,9],[147,1,147,11],[149,1,149,11],[150,1,150,11],[152,1,152,2],[155,1,156,5],[155,6,156,6],[155,7,156,11],[158,3,160,3],[158,9,160,9],[168,1,168,11],[170,1,170,11],[171,1,171,11],[173,1,173,2],[176,1,177,5],[176,6,177,6],[176,7,177,11],[179,3,181,3],[179,9,181,9],[189,1,189,11],[191,1,191,11],[192,1,192,11],[194,1,194,2],[197,1,198,5],[197,6,198,6],[197,7,198,11],[200,3,202,3],[200,9,202,9]]}
[null,"APC SINGLES CHAMPIONSHIP 2018 - MANILA - SCORE SHEET"]
[]
[null,"SCORE SHEET "]
[null,"PRELIMINARY ROUND (BEST OF 3 RACKS)"]
[]
[null,"TABLE NO. "]
[]
[]
[{"$nulls":6},"VS"]
{"$rows_empty":12}
[null,"APC SINGLES CHAMPIONSHIP 2018 - MANILA - SCORE SHEET"]
[]
[null,"SCORE SHEET "]
[null,"PRELIMINARY ROUND (BEST OF 3 RACKS)"]
[]
[null,"TABLE NO. "]
[]
[]
[{"$nulls":6},"VS"]
{"$rows_empty":12}
[null,"APC SINGLES CHAMPIONSHIP 2018 - MANILA - SCORE SHEET"]
[]
[null,"SCORE SHEET "]
[null,"PRELIMINARY ROUND (BEST OF 3 RACKS)"]
[]
[null,"TABLE NO. "]
[]
[]
[{"$nulls":6},"VS"]
{"$rows_empty":12}
[null,"APC SINGLES CHAMPIONSHIP 2018 - MANILA - SCORE SHEET"]
[]
[null,"SCORE SHEET "]
[null,"QUARTER FINALS (BEST OF 5 RACKS)",{"$nulls":10}," "]
[]
[null,"TABLE NO. "]
[]
[]
[{"$nulls":6},"VS"]
{"$rows_empty":12}
[null,"APC SINGLES CHAMPIONSHIP 2018 - MANILA - SCORE SHEET"]
[]
[null,"SCORE SHEET "]
[null,"QUARTER FINALS (BEST OF 5 RACKS)",{"$nulls":10}," "]
[]
[null,"TABLE NO. "]
[]
[]
[{"$nulls":6},"VS"]
{"$rows_empty":12}
[null,"APC SINGLES CHAMPIONSHIP 2018 - MANILA - SCORE SHEET"]
[null,5]
[null,"SCORE SHEET "]
[null,"QUARTER FINALS (BEST OF 5 RACKS)",{"$nulls":10}," "]
[]
[null,"TABLE NO. "]
[]
[]
[{"$nulls":6},"VS"]
{"$rows_empty":12}
[null,"APC SINGLES CHAMPIONSHIP 2018 - MANILA - SCORE SHEET"]
[]
[null,"SCORE SHEET "]
[null,"SEMI FINALS (BEST OF 7 RACKS)",{"$nulls":10}," "]
[]
[null,"TABLE NO. "]
[]
[]
[{"$nulls":6},"VS"]
{"$rows_empty":12}
[null,"APC SINGLES CHAMPIONSHIP 2018 - MANILA - SCORE SHEET"]
[]
[null,"SCORE SHEET "]
[null,"SEMI FINALS (BEST OF 7 RACKS)",{"$nulls":10}," "]
[]
[null,"TABLE NO. "]
[]
[]
[{"$nulls":6},"VS"]
{"$rows_empty":12}
[null,"APC SINGLES CHAMPIONSHIP 2018 - MANILA - SCORE SHEET"]
[]
[null,"SCORE SHEET "]
[null,"FINALS (BEST OF 9 RACKS)",{"$nulls":10}," "]
[]
[null,"TABLE NO. "]
[]
[]
[{"$nulls":6},"VS"]
{"$rows_empty":12}
[null,"APC SINGLES CHAMPIONSHIP 2018 - MANILA - SCORE SHEET"]
[]
[null,"SCORE SHEET "]
[null,"3RD. PLACING (BEST OF 7 RACKS)",{"$nulls":10}," "]
[]
[null,"TABLE NO. "]
[]
[]
[{"$nulls":6},"VS"]